fUSD/lending_fUSD_20250506
["ID","MTS","AMOUNT","RATE_DAILY","PERIOD"]
[360136718,1746563466398,-34276.40954723,0.000225,2]
[360136719,1746563466407,-500.0,0.000225,2]
[360136720,1746563466416,-152.0,0.000225,9]
[360136721,1746563466426,-223.0315306,0.00022558,2]
[360136722,1746563466436,-167.97,0.00022559,2]
[360136723,1746563466445,-164.16,0.00022559,2]
[360136724,1746563466454,-505.59681477,0.0002271,2]
[360136725,1746563466463,-512.86,0.00022711,2]
[360136726,1746563466473,-763.5699145,0.00022712,2]
[360136727,1746563466482,-263.72,0.00022739,2]
[360136728,1746563466492,-13860.75,0.000228,2]
[360136729,1746563466501,-152.0,0.00022857,10]
[360136730,1746563466510,-512.86,0.00022985,2]
[360136731,1746563466519,-551.0,0.00022997,2]
[360136732,1746563466528,-916.0,0.00022997,2]
[360136733,1746563466537,-1452.0,0.00022997,2]
[360136734,1746563466546,-582.0,0.00022997,2]
[360136735,1746563466555,-3689.956,0.00022997,2]
[360136736,1746563466564,-1142.0,0.00022997,2]
[360136737,1746563466573,-6764.0,0.00022997,2]
[360136738,1746563466581,-4015.0,0.00022997,2]
[360136739,1746563466591,-926.0,0.00022997,2]
[360136740,1746563466600,-1301.0,0.00022997,2]
[360136741,1746563466609,-150.0,0.00022997,2]
[360136742,1746563466618,-150.0,0.00022997,2]
[360136743,1746563466627,-293.10275909,0.00022999,5]
[360136744,1746563466636,-1503.84944964,0.00023,2]
[360136745,1746563466646,-283.19265884,0.00023,15]
[360136746,1746563466656,-320.0,0.00023,10]
[360136747,1746563466665,-38382.76,0.00023,2]
[360136748,1746563466674,-400.0,0.00023,2]
[360136749,1746563466683,-45133.73,0.00023,7]
[360136750,1746563466692,-2000.0,0.00023,4]
[360136751,1746563466701,-150.0,0.00023076,2]
[360136752,1746563466710,-150.0,0.00023076,2]
[360136753,1746563466719,-162.36,0.00023076,2]
[360136754,1746563466729,-352.34,0.00023076,2]
[360136755,1746563466739,-162.33,0.00023076,2]
[360136756,1746563466748,-162.26,0.00023076,2]
[360136757,1746563466758,-160.0,0.000231,11]
[360136758,1746563466767,-50410.17744488,0.000232,2]
[360136759,1746563466777,-152.0,0.00023214,11]
[360136760,1746563466786,-512.86,0.00023259,2]
[360136761,1746563466795,-5120.2,0.0002328,2]
[360136762,1746563466805,-200.0,0.000235,2]
[360136763,1746563466814,-1197.93941814,0.000235,2]
[360136764,1746563466823,-512.86,0.00023533,2]
[360136765,1746563466833,-2351.0,0.00023539,2]
[360136766,1746563466842,-1600.0,0.00023555,2]
[360136767,1746563466851,-1000.0,0.00023555,2]
[360136768,1746563466860,-152.0,0.00023572,12]
[360136769,1746563466869,-500.0,0.00023589,2]
[360136770,1746563466879,-974.54,0.00023759,2]
[360136771,1746563466888,-512.86,0.00023807,2]
[360136772,1746563466897,-1626.59,0.00023836,2]
[360136773,1746563466906,-231.28369723,0.00023927,2]
[360136774,1746563466916,-152.0,0.00023929,13]
[360136775,1746563466925,-358.18704,0.00024,2]
[360136776,1746563466935,-59682.29887577,0.00024,2]
[360136777,1746563466948,-986.00155896,0.00024,2]
[360136778,1746563466958,-81350.53275032,0.00024,2]
[360136779,1746563466968,-2000.0,0.00024,4]
[360136780,1746563466977,-512.86,0.00024081,2]
[360136781,1746563466987,-160.0,0.000241,14]
[360136782,1746563466996,-263.72,0.00024109,2]
[360136783,1746563467006,-467.93,0.00024109,2]
[360136784,1746563467015,-467.93,0.00024109,2]
[360136785,1746563467026,-467.93,0.00024109,2]
[360136786,1746563467036,-467.93,0.00024109,2]
[360136787,1746563467045,-467.93,0.00024109,2]
[360136788,1746563467054,-467.93,0.00024109,2]
[360136789,1746563467063,-467.93,0.00024109,2]
[360136790,1746563467072,-467.93,0.00024109,2]
[360136791,1746563467081,-467.93,0.00024109,2]
[360136792,1746563467090,-467.93,0.00024109,2]
[360136793,1746563467099,-467.93,0.00024109,2]
[360136794,1746563467108,-467.93,0.00024109,2]
[360136795,1746563467117,-467.93,0.00024109,2]
[360136796,1746563467126,-467.93,0.00024109,2]
[360136797,1746563467135,-467.93,0.00024109,2]
[360136798,1746563467145,-467.93,0.00024109,2]
[360136799,1746563467154,-467.93,0.00024109,2]
[360136800,1746563467164,-467.93,0.00024109,2]
[360136801,1746563467173,-467.93,0.00024109,2]
[360136802,1746563467183,-467.93,0.00024109,2]
[360136803,1746563467192,-467.93,0.00024109,2]
[360136804,1746563467201,-467.93,0.00024109,2]
[360136805,1746563467211,-467.93,0.00024109,2]
[360136806,1746563467220,-467.93448231,0.00024109,2]
[360136807,1746563467229,-13860.75,0.000242,2]
[360136808,1746563467238,-407.49827695,0.0002421,2]
[360136809,1746563467248,-3570.44283627,0.0002421,2]
[360136810,1746563467257,-152.0,0.00024286,14]
[360136811,1746563467267,-512.86,0.00024355,2]
[360136812,1746563467276,-500.0,0.00024548,2]
[360136813,1746563467286,-45133.73,0.000246,7]
[360136814,1746563467295,-512.86,0.00024629,2]
[360136815,1746563467306,-152.0,0.00024643,15]
[360136816,1746563467315,-500.0,0.00024657,2]
[360136817,1746563467324,-500.0,0.00024657,2]
[360136818,1746563467333,-500.0,0.00024657,2]
[360136819,1746563467343,-300.0,0.00024657,2]
[360136820,1746563467354,-258.2,0.00024658,4]
[360136821,1746563467363,-1000.0,0.00024658,2]
[360136822,1746563467372,-1500.0,0.00024658,21]
[360136823,1746563467381,-1500.0,0.00024658,21]
[360136824,1746563467390,-1500.0,0.00024658,21]
[360136825,1746563467399,-1500.0,0.00024658,21]
[360136826,1746563467408,-1500.0,0.00024658,21]
[360136827,1746563467417,-1500.0,0.00024658,21]
[360136828,1746563467427,-1500.0,0.00024658,21]
[360136829,1746563467436,-1500.0,0.00024658,21]
[360136830,1746563467445,-1500.0,0.00024658,21]
[360136831,1746563467454,-1500.0,0.00024658,21]
[360136832,1746563467463,-1500.0,0.00024658,21]
[360136833,1746563467472,-1500.0,0.00024658,21]
[360136834,1746563467481,-1500.0,0.00024658,21]
[360136835,1746563467492,-1500.0,0.00024658,21]
[360136836,1746563467500,-1500.0,0.00024658,21]
[360136837,1746563467510,-1500.0,0.00024658,21]
[360136838,1746563467522,-1500.0,0.00024658,21]
[360136839,1746563467531,-1500.0,0.00024658,21]
[360136840,1746563467678,-1500.0,0.00024658,21]
[360136841,1746563467687,-1618.660343,0.00024658,21]
[360136842,1746563467697,-151.0,0.00024658,7]
[360136843,1746563467706,-151.0,0.00024658,7]
[360136844,1746563467715,-151.0,0.00024658,7]
[360136845,1746563467724,-151.0,0.00024658,7]
[360136846,1746563467734,-151.0,0.00024658,7]
[360136847,1746563467744,-151.0,0.00024658,7]
[360136848,1746563467753,-151.0,0.00024658,7]
[360136849,1746563467762,-151.0,0.00024658,7]
[360136850,1746563467772,-151.0,0.00024658,7]
[360136851,1746563467781,-250.69032,0.00024658,7]
[360136852,1746563467791,-151.0,0.000248,7]
[360136853,1746563467801,-151.0,0.000248,7]
[360136854,1746563467811,-151.0,0.000248,7]
[360136855,1746563467821,-151.0,0.000248,7]
[360136856,1746563467830,-199.130977,0.000248,7]
[360136857,1746563467840,-303.035294,0.000248,7]
[360136858,1746563467849,-303.035294,0.000248,7]
[360136859,1746563467859,-151.0,0.000248,7]
[360136860,1746563467868,-151.0,0.000248,7]
[360136861,1746563467877,-413.012657,0.000248,7]
[360136862,1746563467886,-413.012657,0.000248,7]
[360136863,1746563467895,-151.0,0.000248,7]
[360136864,1746563467905,-634284.513073,0.000248,3]
[360136865,1746563467915,-347.226314,0.000248,7]
[360136866,1746563467925,-290.805931,0.000248,7]
[360136867,1746563467934,-347.226314,0.000248,7]
[360136868,1746563467946,-38382.76,0.000249,2]
[360136869,1746563467955,-625252.63438,0.000249,3]
[360136870,1746563467964,-10000.0,0.000249,7]
[360136871,1746563467974,-10000.0,0.000249,7]
[360136872,1746563467983,-512.86,0.00024903,2]
[360136873,1746563467993,-1028.37169057,0.00025,2]
[360136874,1746563468002,-161.61691063,0.00025,2]
[360136875,1746563468011,-200.48895509,0.00025,2]
[360136876,1746563468021,-1724.14362088,0.00025,2]
[360136877,1746563468030,-257.11213587,0.00025,2]
[360136878,1746563468039,-309.20000649,0.00025,2]
[360136879,1746563468049,-200.0,0.00025,2]
[360136880,1746563468058,-2939.5308473,0.00025,2]
[360136881,1746563468067,-1763.76044562,0.00025,2]
[360136882,1746563468076,-400.1213,0.00025,2]
[360136883,1746563468086,-500.42309744,0.00025,5]
[360136884,1746563468095,-1500.000002,0.00025,5]
[360136885,1746563468104,-255.64725181,0.00025,3]
[360136886,1746563468113,-1000.0,0.00025,2]
[360136887,1746563468122,-1000.0,0.00025,15]
[360136888,1746563468132,-450.0,0.00025,2]
[360136889,1746563468140,-1881.99999929,0.00025,7]
[360136890,1746563468149,-2000.0,0.00025,4]
[360136891,1746563468159,-152.0,0.00025,16]
[360136892,1746563468168,-3264.57990524,0.000251,2]
[360136893,1746563468178,-160.0,0.000251,17]
[360136894,1746563468186,-512.86,0.00025177,2]
[360136895,1746563468196,-1121.74326989,0.00025252,2]
[360136896,1746563468206,-500.0,0.00025252,2]
[360136897,1746563468216,-239.84119403,0.00025296,2]
[360136898,1746563468225,-280.0,0.000253,10]
[360136899,1746563468234,-1000.0,0.00025352,2]
[360136900,1746563468244,-1000.0,0.00025352,2]
[360136901,1746563468253,-1000.0,0.00025352,2]
[360136902,1746563468263,-1000.0,0.00025352,2]
[360136903,1746563468272,-152.0,0.00025357,17]
[360136904,1746563468281,-512.86,0.00025451,2]
[360136905,1746563468291,-540.80440516,0.00025452,2]
[360136906,1746563468300,-1000.0,0.00025452,2]
[360136907,1746563468309,-181.36048334,0.00025452,2]
[360136908,1746563468318,-1000.0,0.00025452,2]
[360136909,1746563468328,-263.72,0.00025479,2]
[360136910,1746563468337,-13860.75,0.000256,2]
[360136911,1746563468346,-152.0,0.00025714,18]
[360136912,1746563468355,-512.86,0.00025725,2]
[360136913,1746563468365,-3292.0,0.00025765,2]
[360136914,1746563468375,-500.0,0.0002589,2]
[360136915,1746563468384,-1000.0,0.00025911,2]
[360136916,1746563468395,-579.5988329,0.0002599,2]
[360136917,1746563468405,-551.0,0.00025997,2]
[360136918,1746563468415,-916.0,0.00025997,2]
[360136919,1746563468426,-1452.0,0.00025997,2]
[360136920,1746563468436,-578.0,0.00025997,2]
[360136921,1746563468445,-1142.0,0.00025997,2]
[360136922,1746563468455,-6764.0,0.00025997,2]
[360136923,1746563468465,-4015.0,0.00025997,2]
[360136924,1746563468475,-926.0,0.00025997,2]
[360136925,1746563468485,-1301.0,0.00025997,2]
[360136926,1746563468495,-150.0,0.00025997,2]
[360136927,1746563468505,-513.02854922,0.00025999,2]
[360136928,1746563468514,-308.19602937,0.00026,2]
[360136929,1746563468524,-4365.82693283,0.00026,2]
[360136930,1746563468534,-1717.20319055,0.00026,2]
[360136931,1746563468543,-3046.9227018,0.00026,10]
[360136932,1746563468553,-45133.73,0.00026,7]
[360136933,1746563468563,-2000.0,0.00026,4]
[360136934,1746563468572,-974.54,0.00026023,2]
[360136935,1746563468582,-152.0,0.00026072,19]
[360136936,1746563468592,-160.0,0.000261,20]
[360136937,1746563468601,-7320.64456341,0.00026283,2]
[360136938,1746563468611,-3822.41,0.00026354,2]
[360136939,1746563468620,-400.0,0.00026384,2]
[360136940,1746563468630,-26516.00729522,0.000264,2]
[360136941,1746563468640,-152.0,0.00026429,20]
[360136942,1746563468649,-46217.27492291,0.000265,2]
[360136943,1746563468659,-38382.76,0.000265,2]
[360136944,1746563468668,-248.71531821,0.00026665,2]
[360136945,1746563468678,-152.0,0.00026786,21]
[360136946,1746563468688,-286.33,0.000268,2]
[360136947,1746563468697,-286.33,0.000268,2]
[360136948,1746563468707,-286.33,0.000268,2]
[360136949,1746563468717,-286.33,0.000268,2]
[360136950,1746563468727,-286.33,0.000268,2]
[360136951,1746563468736,-286.33,0.000268,2]
[360136952,1746563468746,-286.33,0.000268,2]
[360136953,1746563468756,-286.33,0.000268,2]
[360136954,1746563468766,-286.33,0.000268,2]
[360136955,1746563468775,-286.33,0.000268,2]
[360136956,1746563468786,-286.33,0.000268,2]
[360136957,1746563468797,-286.33,0.000268,2]
[360136958,1746563468806,-286.33,0.000268,2]
[360136959,1746563468816,-286.33,0.000268,2]
[360136960,1746563468827,-286.33,0.000268,2]
[360136961,1746563468836,-286.33,0.000268,2]
[360136962,1746563468846,-286.33,0.000268,2]
[360136963,1746563468855,-263.72,0.00026849,2]
[360136964,1746563468866,-250.0,0.00027,2]
[360136965,1746563468876,-999.5732639,0.00027,2]
[360136966,1746563468885,-185.88867705,0.00027,2]
[360136967,1746563468895,-714.0,0.00027,4]
[360136968,1746563468905,-114179.14263203,0.00027,2]
[360136969,1746563468915,-1415.13704342,0.00027,14]
[360136970,1746563468924,-1708.4293612,0.00027,15]
[360136971,1746563468933,-500.0,0.00027,2]
[360136972,1746563468945,-238.27422,0.00027,2]
[360136973,1746563468955,-2000.0,0.00027,4]
[360136974,1746563468965,-160.0,0.000271,23]
[360136975,1746563468975,-3552.57,0.00027123,2]
[360136976,1746563468986,-152.0,0.00027143,22]
[360136977,1746563468995,-13860.75,0.000272,2]
[360136978,1746563469005,-5000.0,0.00027257,3]
[360136979,1746563469016,-6079.58547804,0.00027342,2]
[360136980,1746563469025,-2057.01,0.00027397,2]
[360136981,1746563469035,-2057.01,0.00027397,2]
[360136982,1746563469045,-2057.01,0.00027397,2]
[360136983,1746563469055,-2057.01,0.00027397,2]
[360136984,1746563469064,-2057.01,0.00027397,2]
[360136985,1746563469073,-2057.01,0.00027397,2]
[360136986,1746563469083,-2057.01,0.00027397,2]
[360136987,1746563469093,-2057.01,0.00027397,2]
[360136988,1746563469102,-2057.01,0.00027397,2]
[360136989,1746563469112,-2057.01,0.00027397,2]
[360136990,1746563469121,-2057.01,0.00027397,2]
[360136991,1746563469131,-2057.01,0.00027397,2]
[360136992,1746563469140,-2057.01,0.00027397,2]
[360136993,1746563469149,-2057.01,0.00027397,2]
[360136994,1746563469159,-2057.01,0.00027397,2]
[360136995,1746563469168,-2057.01,0.00027397,2]
[360136996,1746563469177,-2057.01,0.00027397,2]
[360136997,1746563469187,-2057.01,0.00027397,2]
[360136998,1746563469197,-2057.01,0.00027397,2]
[360136999,1746563469208,-2057.01,0.00027397,2]
[360137000,1746563469217,-2057.01,0.00027397,2]
[360137001,1746563469227,-2057.01,0.00027397,2]
[360137002,1746563469236,-2057.01,0.00027397,2]
[360137003,1746563469246,-2057.17497764,0.00027397,2]
[360137004,1746563469255,-450.0,0.00027397,2]
[360137005,1746563469264,-450.0,0.00027397,2]
[360137006,1746563469274,-450.0,0.00027397,2]
[360137007,1746563469284,-450.0,0.00027397,2]
[360137008,1746563469293,-450.0,0.00027397,2]
[360137009,1746563469302,-450.0,0.00027397,2]
[360137010,1746563469311,-155.11313938,0.00027397,2]
[360137011,1746563469320,-291.36451384,0.00027397,2]
[360137012,1746563469330,-150.0,0.00027397,2]
[360137013,1746563469339,-500.0,0.00027397,2]
[360137014,1746563469349,-201.47974044,0.00027397,2]
[360137015,1746563469358,-150.0,0.00027397,2]
[360137016,1746563469367,-156.58463861,0.00027397,2]
[360137017,1746563469376,-500.0,0.00027397,2]
[360137018,1746563469385,-500.0,0.00027397,2]
[360137019,1746563469395,-1000.0,0.00027397,2]
[360137020,1746563469404,-1000.0,0.00027397,2]
[360137021,1746563469413,-1000.0,0.00027397,2]
[360137022,1746563469423,-1000.0,0.00027397,2]
[360137023,1746563469432,-1075.65578043,0.00027397,2]
[360137024,1746563469441,-306.87923277,0.00027397,7]
[360137025,1746563469450,-150.0,0.00027397,2]
[360137026,1746563469459,-150.85615178,0.00027397,2]
[360137027,1746563469468,-500.0,0.00027397,2]
[360137028,1746563469477,-500.0,0.00027397,2]
[360137029,1746563469487,-500.0,0.00027397,2]
[360137030,1746563469495,-151.97170087,0.00027397,2]
[360137031,1746563469504,-500.0,0.00027397,2]
[360137032,1746563469513,-150.0,0.00027397,2]
[360137033,1746563469523,-500.0,0.00027397,2]
[360137034,1746563469532,-150.0,0.00027397,2]
[360137035,1746563469541,-150.0,0.00027397,2]
[360137036,1746563469550,-150.0,0.00027397,2]
[360137037,1746563469559,-500.0,0.00027397,2]
[360137038,1746563469569,-150.0,0.00027397,2]
[360137039,1746563469578,-652.0,0.00027397,2]
[360137040,1746563469587,-155.9501235,0.00027397,2]
[360137041,1746563469597,-500.0,0.00027397,2]
[360137042,1746563469606,-500.0,0.00027397,2]
[360137043,1746563469616,-152.43998568,0.00027397,2]
[360137044,1746563469625,-500.0,0.00027397,2]
[360137045,1746563469635,-150.0,0.00027397,2]
[360137046,1746563469644,-188.57854709,0.00027397,2]
[360137047,1746563469653,-500.0,0.00027397,2]
[360137048,1746563469663,-150.0,0.00027397,2]
[360137049,1746563469672,-500.0,0.00027397,2]
[360137050,1746563469682,-299.92668817,0.00027397,2]
[360137051,1746563469693,-1142.66,0.00027397,2]
[360137052,1746563469702,-1142.66,0.00027397,2]
[360137053,1746563469712,-1142.66,0.00027397,2]
[360137054,1746563469721,-1142.66,0.00027397,2]
[360137055,1746563469731,-1142.66,0.00027397,2]
[360137056,1746563469741,-1142.66,0.00027397,2]
[360137057,1746563469751,-1142.66,0.00027397,2]
[360137058,1746563469761,-1142.66,0.00027397,2]
[360137059,1746563469770,-1142.66,0.00027397,2]
[360137060,1746563469780,-1142.66,0.00027397,2]
[360137061,1746563469790,-1142.66,0.00027397,2]
[360137062,1746563469799,-1142.66,0.00027397,2]
[360137063,1746563469809,-1142.66,0.00027397,2]
[360137064,1746563469818,-1142.66,0.00027397,2]
[360137065,1746563469828,-1142.66,0.00027397,2]
[360137066,1746563469839,-1142.66,0.00027397,2]
[360137067,1746563469848,-1142.66,0.00027397,2]
[360137068,1746563469857,-1142.66,0.00027397,2]
[360137069,1746563469867,-1142.66,0.00027397,2]
[360137070,1746563469876,-1142.66,0.00027397,2]
[360137071,1746563469886,-1142.66,0.00027397,2]
[360137072,1746563469895,-1142.66,0.00027397,2]
[360137073,1746563469905,-1142.66,0.00027397,2]
[360137074,1746563469914,-1142.67265734,0.00027397,2]
[360137075,1746563469923,-199.22856734,0.00027397,2]
[360137076,1746563469933,-300.0,0.00027397,2]
[360137077,1746563469945,-500.12,0.00027397,2]
[360137078,1746563469954,-989.79,0.00027397,15]
[360137079,1746563469963,-161.904233,0.00027397,7]
[360137080,1746563469973,-9560.41,0.00027397,2]
[360137081,1746563469983,-1000.0,0.00027397,2]
[360137082,1746563469994,-153.32254838,0.00027397,5]
[360137083,1746563470003,-160.47702361,0.00027397,5]
[360137084,1746563470012,-152.4057634,0.00027397,5]
[360137085,1746563470023,-500.0,0.00027397,4]
[360137086,1746563470034,-150.0,0.00027424,2]
[360137087,1746563470044,-500.0,0.00027424,2]
[360137088,1746563470054,-150.0,0.00027424,2]
[360137089,1746563470064,-500.0,0.00027424,2]
[360137090,1746563470073,-500.195601,0.00027424,2]
[360137091,1746563470082,-562.78481954,0.00027424,2]
[360137092,1746563470091,-500.0,0.00027424,2]
[360137093,1746563470102,-500.0,0.00027424,2]
[360137094,1746563470111,-519.536275,0.00027424,2]
[360137095,1746563470120,-224.06420064,0.00027424,2]
[360137096,1746563470131,-500.0,0.00027424,2]
[360137097,1746563470140,-150.0,0.00027424,2]
[360137098,1746563470151,-150.0,0.00027424,2]
[360137099,1746563470160,-150.0,0.00027424,2]
[360137100,1746563470170,-500.0,0.00027424,2]
[360137101,1746563470180,-207.59451203,0.00027424,2]
[360137102,1746563470189,-652.0,0.00027424,2]
[360137103,1746563470199,-500.0,0.00027424,2]
[360137104,1746563470208,-503.96873653,0.00027424,2]
[360137105,1746563470217,-500.0,0.00027424,2]
[360137106,1746563470227,-150.0,0.00027424,2]
[360137107,1746563470237,-500.0,0.00027424,2]
[360137108,1746563470247,-500.0,0.00027424,2]
[360137109,1746563470257,-201.18897844,0.00027452,2]
[360137110,1746563470266,-500.0,0.00027452,2]
[360137111,1746563470275,-228.63073638,0.00027452,2]
[360137112,1746563470284,-500.0,0.00027452,2]
[360137113,1746563470293,-500.0,0.00027452,2]
[360137114,1746563470302,-500.0,0.00027452,2]
[360137115,1746563470311,-500.0,0.00027452,2]
[360137116,1746563470320,-150.0,0.00027452,2]
[360137117,1746563470329,-150.0,0.00027452,2]
[360137118,1746563470338,-224.21427722,0.00027452,2]
[360137119,1746563470348,-500.0,0.00027452,2]
[360137120,1746563470358,-652.0,0.00027452,2]
[360137121,1746563470367,-500.0,0.00027452,2]
[360137122,1746563470376,-154.25047268,0.00027452,2]
[360137123,1746563470386,-150.0,0.00027452,2]
[360137124,1746563470395,-500.0,0.00027452,2]
[360137125,1746563470404,-500.0,0.00027452,2]
[360137126,1746563470413,-500.0,0.00027479,2]
[360137127,1746563470422,-500.0,0.00027479,2]
[360137128,1746563470431,-500.0,0.00027479,2]
[360137129,1746563470440,-500.0,0.00027479,2]
[360137130,1746563470449,-500.0,0.00027479,2]
[360137131,1746563470458,-150.0,0.00027479,2]
[360137132,1746563470467,-150.0,0.00027479,2]
[360137133,1746563470476,-500.0,0.00027479,2]
[360137134,1746563470485,-652.0,0.00027479,2]
[360137135,1746563470495,-500.0,0.00027479,2]
[360137136,1746563470505,-206.98861719,0.00027479,2]
[360137137,1746563470513,-500.0,0.00027479,2]
[360137138,1746563470523,-300.0,0.00027479,2]
[360137139,1746563470532,-194.11923408,0.000275,2]
[360137140,1746563470541,-45133.73,0.000275,7]
[360137141,1746563470549,-152.0,0.000275,23]
[360137142,1746563470558,-550.0,0.00027507,2]
[360137143,1746563470568,-500.0,0.00027507,2]
[360137144,1746563470577,-500.0,0.00027507,2]
[360137145,1746563470586,-500.0,0.00027507,2]
[360137146,1746563470595,-500.0,0.00027507,2]
[360137147,1746563470605,-200.0,0.00027507,2]
[360137148,1746563470614,-299.1095528,0.00027507,2]
[360137149,1746563470757,-500.0,0.00027507,2]
[360137150,1746563470767,-652.0,0.00027507,2]
[360137151,1746563470777,-500.0,0.00027507,2]
[360137152,1746563470787,-500.0,0.00027507,2]
[360137153,1746563470796,-500.0,0.00027534,2]
[360137154,1746563470806,-500.0,0.00027534,2]
[360137155,1746563470815,-500.0,0.00027534,2]
[360137156,1746563470825,-506.92950626,0.00027534,2]
[360137157,1746563470835,-500.0,0.00027534,2]
[360137158,1746563470845,-652.0,0.00027534,2]
[360137159,1746563470854,-500.0,0.00027534,2]
[360137160,1746563470864,-550.0,0.00027534,2]
[360137161,1746563470874,-500.0,0.00027561,2]
[360137162,1746563470883,-500.0,0.00027561,2]
[360137163,1746563470892,-500.0,0.00027561,2]
[360137164,1746563470902,-500.0,0.00027561,2]
[360137165,1746563470912,-652.0,0.00027561,2]
[360137166,1746563470921,-500.0,0.00027561,2]
[360137167,1746563470930,-500.0,0.00027589,2]
[360137168,1746563470942,-500.0,0.00027589,2]
[360137169,1746563470952,-500.0,0.00027589,2]
[360137170,1746563470963,-500.0,0.00027589,2]
[360137171,1746563470972,-652.0,0.00027589,2]
[360137172,1746563470982,-317.46676649,0.00027589,2]
[360137173,1746563470992,-74132.06,0.000276,5]
[360137174,1746563471001,-500.0,0.00027616,2]
[360137175,1746563471011,-500.0,0.00027616,2]
[360137176,1746563471022,-500.0,0.00027616,2]
[360137177,1746563471032,-500.0,0.00027616,2]
[360137178,1746563471041,-652.0,0.00027616,2]
[360137179,1746563471051,-500.0,0.00027644,2]
[360137180,1746563471060,-500.0,0.00027644,2]
[360137181,1746563471070,-500.0,0.00027644,2]
[360137182,1746563471080,-581.16517379,0.00027644,2]
[360137183,1746563471090,-652.0,0.00027644,2]
[360137184,1746563471099,-332.77718872,0.00027671,2]
[360137185,1746563471109,-619.55826547,0.00027671,2]
[360137186,1746563471118,-344.0,0.00027671,2]
[360137187,1746563471128,-652.0,0.00027671,2]
[360137188,1746563471138,-652.0,0.00027698,2]
[360137189,1746563471147,-652.0,0.00027726,2]
[360137190,1746563471157,-652.0,0.00027753,2]
[360137191,1746563471166,-652.0,0.00027781,2]
[360137192,1746563471175,-652.0,0.00027808,2]
[360137193,1746563471185,-391.0,0.0002783,15]
[360137194,1746563471194,-652.0,0.00027835,2]
[360137195,1746563471204,-152.0,0.00027857,24]
[360137196,1746563471214,-652.0,0.00027863,2]
[360137197,1746563471223,-652.0,0.0002789,2]
[360137198,1746563471233,-652.0,0.00027918,2]
[360137199,1746563471243,-652.0,0.00027945,2]
[360137200,1746563471252,-1000.0,0.00027945,4]
[360137201,1746563471262,-652.0,0.00027972,2]
[360137202,1746563471273,-171.34065759,0.00027973,5]
[360137203,1746563471282,-652.0,0.00028,2]
[360137204,1746563471292,-277.4,0.00028,2]
[360137205,1746563471301,-100967.95965176,0.00028,2]
[360137206,1746563471311,-500.0,0.00028,2]
[360137207,1746563471320,-25484.24257721,0.00028,2]
[360137208,1746563471330,-509.68485155,0.00028,2]
[360137209,1746563471340,-300.0,0.00028,2]
[360137210,1746563471349,-2711.792944,0.00028,2]
[360137211,1746563471359,-200.0,0.00028,2]
[360137212,1746563471368,-1000.0,0.00028,2]
[360137213,1746563471377,-162.0,0.00028,2]
[360137214,1746563471387,-2000.0,0.00028,4]
[360137215,1746563471396,-669.39293643,0.00028027,2]
[360137216,1746563471406,-257.91778498,0.00028034,2]
[360137217,1746563471417,-38382.76,0.000281,2]